[Event "Titled Tuesday Blitz August 02 Early 2022"]
[White "Itgelt, Khuyagtsogt"]
[Black "Salem, A.R. Saleh"]
[WhiteFideId "4902912"]
[BlackFideId "9301348"]
[WhiteElo "2012"]
[BlackElo "2679"]
[Result "1-0"]
[Round "03"]
[TimeControl "180+1"]
[Date "2022.08.02"]
[WhiteClock "0:00:05"]
[BlackClock "0:00:09"]

1. d4 {[%clk 0:03:00]}  Nf6 {[%clk 0:02:58]} 2. c4 {[%clk 0:03:01]}  g6 {[%clk 0:02:59]} 3. Nc3 {[%clk 0:03:01]}  Bg7 {[%clk 0:03:00]} 4. e4 {[%clk 0:03:02]}  O-O {[%clk 0:03:01]} 5. Nf3 {[%clk 0:03:03]}  d6 {[%clk 0:03:01]} 6. Be2 {[%clk 0:03:03]}  e5 {[%clk 0:03:02]} 7. d5 {[%clk 0:03:04]}  a5 {[%clk 0:03:02]} 8. Bg5 {[%clk 0:02:58]}  h6 {[%clk 0:03:02]} 9. Be3 {[%clk 0:02:57]}  Ng4 {[%clk 0:03:01]} 10. Bd2 {[%clk 0:02:57]}  Na6 {[%clk 0:03:01]} 11. h3 {[%clk 0:02:54]}  Nf6 {[%clk 0:03:02]} 12. Be3 {[%clk 0:02:55]}  Nh5 {[%clk 0:02:59]} 13. g3 {[%clk 0:02:52]}  f5 {[%clk 0:02:43]} 14. exf5 {[%clk 0:02:52]}  gxf5 {[%clk 0:02:44]} 15. Nh4 {[%clk 0:02:49]}  f4 {[%clk 0:02:41]} 16. Bxh5 {[%clk 0:02:36]}  fxe3 {[%clk 0:02:41]} 17. fxe3 {[%clk 0:02:12]}  e4 {[%clk 0:02:41]} 18. Ng6 {[%clk 0:02:04]}  Rf5 {[%clk 0:01:46]} 19. Bg4 {[%clk 0:01:57]}  Nc5 {[%clk 0:01:46]} 20. Bxf5 {[%clk 0:01:44]}  Nd3+ {[%clk 0:01:45]} 21. Kd2 {[%clk 0:01:44]}  Bxf5 {[%clk 0:01:45]} 22. Qh5 {[%clk 0:01:38]}  Bxg6 {[%clk 0:01:14]} 23. Qxg6 {[%clk 0:01:39]}  Nxb2 {[%clk 0:01:14]} 24. Qxe4 {[%clk 0:01:23]}  Qf6 {[%clk 0:01:07]} 25. Qe6+ {[%clk 0:01:06]}  Qxe6 {[%clk 0:01:07]} 26. dxe6 {[%clk 0:01:07]}  Nxc4+ {[%clk 0:01:06]} 27. Kd3 {[%clk 0:01:04]}  Ne5+ {[%clk 0:01:07]} 28. Ke2 {[%clk 0:01:02]}  Re8 {[%clk 0:01:06]} 29. Rab1 {[%clk 0:00:58]}  Rxe6 {[%clk 0:00:50]} 30. Rxb7 {[%clk 0:00:56]}  Nc4 {[%clk 0:00:45]} 31. Nd5 {[%clk 0:00:57]}  c6 {[%clk 0:00:45]} 32. Re7 {[%clk 0:00:52]}  Rg6 {[%clk 0:00:40]} 33. Nf4 {[%clk 0:00:36]}  Rg5 {[%clk 0:00:33]} 34. Rb1 {[%clk 0:00:33]}  Bb2 {[%clk 0:00:19]} 35. Kd3 {[%clk 0:00:22]}  d5 {[%clk 0:00:17]} 36. g4 {[%clk 0:00:22]}  Kf8 {[%clk 0:00:12]} 37. Rb7 {[%clk 0:00:17]}  Ke8 {[%clk 0:00:12]} 38. R1xb2 {[%clk 0:00:17]}  Nxb2+ {[%clk 0:00:12]} 39. Rxb2 {[%clk 0:00:18]}  Kd7 {[%clk 0:00:13]} 40. Rb7+ {[%clk 0:00:15]}  Kd6 {[%clk 0:00:14]} 41. Rh7 {[%clk 0:00:16]}  Rg8 {[%clk 0:00:12]} 42. Rxh6+ {[%clk 0:00:16]}  Kc5 {[%clk 0:00:12]} 43. Ne6+ {[%clk 0:00:07]}  Kb4 {[%clk 0:00:12]} 44. Nd4 {[%clk 0:00:07]}  c5 {[%clk 0:00:13]} 45. Rb6+ {[%clk 0:00:07]}  Ka4 {[%clk 0:00:14]} 46. Nc6 {[%clk 0:00:07]}  Rg6 {[%clk 0:00:10]} 47. e4 {[%clk 0:00:04]}  c4+ {[%clk 0:00:07]} 48. Kd4 {[%clk 0:00:04]}  dxe4 {[%clk 0:00:07]} 49. Kxc4 {[%clk 0:00:05]}  e3 {[%clk 0:00:07]} 50. Kd3 {[%clk 0:00:05]}  Re6 {[%clk 0:00:08]} 51. Ke2 {[%clk 0:00:06]}  Ka3 {[%clk 0:00:09]} 52. g5 {[%clk 0:00:06]}  a4 {[%clk 0:00:08]} 53. h4 {[%clk 0:00:05]}  Kxa2 {[%clk 0:00:09]} 54. Nb4+ {[%clk 0:00:05]} 1-0


[Site "https://www.chess.com"]

[Event "Titled Tuesday Blitz August 02 Early 2022"]
[White "Izoria, Zviad"]
[Black "Cappelletto, Joshuaede"]
[WhiteFideId "13601733"]
[BlackFideId "2824383"]
[WhiteElo "2626"]
[BlackElo "1761"]
[Result "1-0"]
[Round "03"]
[TimeControl "180+1"]
[Date "2022.08.02"]
[WhiteClock "0:01:23"]
[BlackClock "0:01:19"]

1. Nf3 {[%clk 0:03:00]}  Nf6 {[%clk 0:02:57]} 2. c4 {[%clk 0:03:01]}  g6 {[%clk 0:02:57]} 3. Nc3 {[%clk 0:02:59]}  Bg7 {[%clk 0:02:57]} 4. e4 {[%clk 0:02:59]}  d6 {[%clk 0:02:57]} 5. d4 {[%clk 0:02:59]}  O-O {[%clk 0:02:57]} 6. Be2 {[%clk 0:02:59]}  e5 {[%clk 0:02:57]} 7. O-O {[%clk 0:02:58]}  Nc6 {[%clk 0:02:57]} 8. d5 {[%clk 0:02:57]}  Ne7 {[%clk 0:02:57]} 9. Kh1 {[%clk 0:02:57]}  a5 {[%clk 0:02:56]} 10. Ne1 {[%clk 0:02:53]}  Nd7 {[%clk 0:02:55]} 11. Be3 {[%clk 0:02:52]}  f5 {[%clk 0:02:54]} 12. f3 {[%clk 0:02:52]}  Nc5 {[%clk 0:02:53]} 13. Nd3 {[%clk 0:02:44]}  b6 {[%clk 0:02:51]} 14. a3 {[%clk 0:02:44]}  a4 {[%clk 0:02:49]} 15. Nxc5 {[%clk 0:02:43]}  bxc5 {[%clk 0:02:49]} 16. Nxa4 {[%clk 0:02:42]}  Bd7 {[%clk 0:02:42]} 17. Nc3 {[%clk 0:02:41]}  Qb8 {[%clk 0:02:39]} 18. Qc2 {[%clk 0:02:36]}  f4 {[%clk 0:02:21]} 19. Bf2 {[%clk 0:02:36]}  g5 {[%clk 0:02:21]} 20. Nb5 {[%clk 0:02:22]}  h5 {[%clk 0:02:19]} 21. b4 {[%clk 0:02:21]}  g4 {[%clk 0:02:04]} 22. bxc5 {[%clk 0:02:17]}  Ng6 {[%clk 0:02:01]} 23. c6 {[%clk 0:02:09]}  Bc8 {[%clk 0:01:38]} 24. Rab1 {[%clk 0:02:08]}  Ba6 {[%clk 0:01:33]} 25. Nxd6 {[%clk 0:02:07]}  Qd8 {[%clk 0:01:32]} 26. Nf5 {[%clk 0:02:05]}  Qg5 {[%clk 0:01:32]} 27. h4 {[%clk 0:01:26]}  gxh3 {[%clk 0:01:24]} 28. gxh3 {[%clk 0:01:26]}  Bc8 {[%clk 0:01:21]} 29. Rg1 {[%clk 0:01:25]}  Qd8 {[%clk 0:01:21]} 30. Rxg6 {[%clk 0:01:24]}  Bxf5 {[%clk 0:01:19]} 31. exf5 {[%clk 0:01:25]}  Rxa3 {[%clk 0:01:19]} 32. Rbg1 {[%clk 0:01:24]}  Rf7 {[%clk 0:01:19]} 33. f6 {[%clk 0:01:23]} 1-0


[Site "https://www.chess.com"]

[Event "Titled Tuesday Blitz August 02 Early 2022"]
[White "Le, Tuan Minh"]
[Black "Kosteniuk, Alexandra"]
[WhiteFideId "12401153"]
[BlackFideId "4128125"]
[WhiteElo "2530"]
[BlackElo "2469"]
[Result "0-1"]
[Round "03"]
[TimeControl "180+1"]
[Date "2022.08.02"]
[WhiteClock "0:00:02"]
[BlackClock "0:00:16"]

1. d4 {[%clk 0:03:00]}  Nf6 {[%clk 0:02:59]} 2. Nf3 {[%clk 0:03:00]}  d5 {[%clk 0:02:59]} 3. Bf4 {[%clk 0:03:00]}  c5 {[%clk 0:02:58]} 4. c3 {[%clk 0:03:00]}  Nc6 {[%clk 0:02:56]} 5. e3 {[%clk 0:03:00]}  cxd4 {[%clk 0:02:55]} 6. cxd4 {[%clk 0:03:00]}  g6 {[%clk 0:02:50]} 7. Nc3 {[%clk 0:03:00]}  Bg7 {[%clk 0:02:49]} 8. Be2 {[%clk 0:03:01]}  O-O {[%clk 0:02:49]} 9. O-O {[%clk 0:02:59]}  Nh5 {[%clk 0:02:34]} 10. Bg5 {[%clk 0:02:54]}  h6 {[%clk 0:02:30]} 11. Bh4 {[%clk 0:02:54]}  g5 {[%clk 0:02:29]} 12. Nd2 {[%clk 0:02:53]}  Nf6 {[%clk 0:02:27]} 13. Bg3 {[%clk 0:02:53]}  a6 {[%clk 0:02:15]} 14. Rc1 {[%clk 0:02:52]}  Bf5 {[%clk 0:02:13]} 15. Na4 {[%clk 0:02:44]}  Bg6 {[%clk 0:02:05]} 16. Nc5 {[%clk 0:02:42]}  Qc8 {[%clk 0:02:04]} 17. Qb3 {[%clk 0:02:15]}  b5 {[%clk 0:02:03]} 18. Nf3 {[%clk 0:02:04]}  Na5 {[%clk 0:01:57]} 19. Qd1 {[%clk 0:01:49]}  Nc4 {[%clk 0:01:47]} 20. b3 {[%clk 0:01:48]}  Nd6 {[%clk 0:01:47]} 21. Ne5 {[%clk 0:01:47]}  Bf5 {[%clk 0:01:27]} 22. f4 {[%clk 0:01:36]}  gxf4 {[%clk 0:01:16]} 23. Bxf4 {[%clk 0:01:36]}  Qe8 {[%clk 0:01:10]} 24. Qe1 {[%clk 0:01:34]}  Kh7 {[%clk 0:01:08]} 25. Qh4 {[%clk 0:01:33]}  Rc8 {[%clk 0:01:01]} 26. g4 {[%clk 0:01:34]}  Bg6 {[%clk 0:00:55]} 27. g5 {[%clk 0:01:34]}  Nfe4 {[%clk 0:00:56]} 28. Kh1 {[%clk 0:01:21]}  Nf5 {[%clk 0:00:55]} 29. Qh3 {[%clk 0:01:21]}  Nxc5 {[%clk 0:00:55]} 30. dxc5 {[%clk 0:01:16]}  d4 {[%clk 0:00:46]} 31. exd4 {[%clk 0:00:40]}  Nxd4 {[%clk 0:00:39]} 32. Bg4 {[%clk 0:00:39]}  e6 {[%clk 0:00:36]} 33. Qe3 {[%clk 0:00:32]}  Nf5 {[%clk 0:00:33]} 34. Bxf5 {[%clk 0:00:32]}  Bxf5 {[%clk 0:00:33]} 35. gxh6 {[%clk 0:00:32]}  Bxe5 {[%clk 0:00:34]} 36. Qxe5 {[%clk 0:00:29]}  Qc6+ {[%clk 0:00:35]} 37. Kg1 {[%clk 0:00:29]}  Rg8+ {[%clk 0:00:35]} 38. Bg3 {[%clk 0:00:29]}  Rg6 {[%clk 0:00:32]} 39. Rc3 {[%clk 0:00:26]}  Rd8 {[%clk 0:00:31]} 40. Rcf3 {[%clk 0:00:19]}  Rd2 {[%clk 0:00:30]} 41. R3f2 {[%clk 0:00:18]}  Rd3 {[%clk 0:00:28]} 42. b4 {[%clk 0:00:17]}  f6 {[%clk 0:00:21]} 43. Qb8 {[%clk 0:00:15]}  e5 {[%clk 0:00:18]} 44. Rg2 {[%clk 0:00:09]}  Bh3 {[%clk 0:00:17]} 45. Rff2 {[%clk 0:00:02]}  Rd1+ {[%clk 0:00:16]} 0-1


[Site "https://www.chess.com"]

[Event "Titled Tuesday Blitz August 02 Early 2022"]
[White "Matinian, Nikita"]
[Black "Martinez Alcantara, Jose Eduardo"]
[WhiteFideId "24129100"]
[BlackFideId "3805662"]
[WhiteElo "2422"]
[BlackElo "2703"]
[Result "0-1"]
[Round "03"]
[TimeControl "180+1"]
[Date "2022.08.02"]
[WhiteClock "0:00:04"]
[BlackClock "0:00:19"]

1. e4 {[%clk 0:03:00]}  Nc6 {[%clk 0:03:00]} 2. Nf3 {[%clk 0:03:00]}  d6 {[%clk 0:03:00]} 3. d4 {[%clk 0:03:01]}  Nf6 {[%clk 0:03:01]} 4. Nc3 {[%clk 0:03:01]}  g6 {[%clk 0:03:02]} 5. d5 {[%clk 0:03:01]}  Nb8 {[%clk 0:03:02]} 6. h3 {[%clk 0:03:00]}  Bg7 {[%clk 0:03:02]} 7. Be3 {[%clk 0:03:01]}  O-O {[%clk 0:03:03]} 8. Qd2 {[%clk 0:03:01]}  e6 {[%clk 0:02:56]} 9. dxe6 {[%clk 0:03:01]}  Bxe6 {[%clk 0:02:56]} 10. Bh6 {[%clk 0:03:00]}  Nc6 {[%clk 0:02:53]} 11. Bxg7 {[%clk 0:03:00]}  Kxg7 {[%clk 0:02:54]} 12. O-O-O {[%clk 0:03:01]}  Qe7 {[%clk 0:02:47]} 13. Ng5 {[%clk 0:02:45]}  h6 {[%clk 0:02:42]} 14. Nxe6+ {[%clk 0:02:45]}  fxe6 {[%clk 0:02:43]} 15. Be2 {[%clk 0:02:32]}  e5 {[%clk 0:02:41]} 16. g4 {[%clk 0:02:27]}  Nd4 {[%clk 0:02:29]} 17. h4 {[%clk 0:02:12]}  c6 {[%clk 0:02:11]} 18. g5 {[%clk 0:02:09]}  Ng8 {[%clk 0:02:12]} 19. f4 {[%clk 0:02:04]}  Rxf4 {[%clk 0:02:07]} 20. gxh6+ {[%clk 0:01:58]}  Kh7 {[%clk 0:02:07]} 21. Rdg1 {[%clk 0:01:59]}  Rxh4 {[%clk 0:01:45]} 22. Bc4 {[%clk 0:01:22]}  Rxh1 {[%clk 0:01:14]} 23. Rxh1 {[%clk 0:01:23]}  Rf8 {[%clk 0:01:13]} 24. Nd1 {[%clk 0:01:17]}  Nf6 {[%clk 0:01:13]} 25. Nf2 {[%clk 0:01:11]}  Nh5 {[%clk 0:01:07]} 26. Nh3 {[%clk 0:01:11]}  Nf4 {[%clk 0:01:01]} 27. Nxf4 {[%clk 0:01:10]}  Rxf4 {[%clk 0:01:02]} 28. c3 {[%clk 0:01:11]}  Nf3 {[%clk 0:01:01]} 29. Qe3 {[%clk 0:01:04]}  b5 {[%clk 0:00:53]} 30. Be2 {[%clk 0:00:58]}  Ng5 {[%clk 0:00:45]} 31. Bd3 {[%clk 0:00:52]}  Qf7 {[%clk 0:00:42]} 32. Kb1 {[%clk 0:00:46]}  Nf3 {[%clk 0:00:40]} 33. Be2 {[%clk 0:00:39]}  Nh4 {[%clk 0:00:39]} 34. a4 {[%clk 0:00:27]}  bxa4 {[%clk 0:00:38]} 35. Ka1 {[%clk 0:00:17]}  Qe7 {[%clk 0:00:29]} 36. Qh3 {[%clk 0:00:08]}  a3 {[%clk 0:00:25]} 37. Bc4 {[%clk 0:00:05]}  axb2+ {[%clk 0:00:25]} 38. Kxb2 {[%clk 0:00:06]}  d5 {[%clk 0:00:24]} 39. exd5 {[%clk 0:00:04]}  Rxc4 {[%clk 0:00:22]} 40. d6 {[%clk 0:00:04]}  Qxd6 {[%clk 0:00:20]} 41. Qf3 {[%clk 0:00:04]}  Nxf3 {[%clk 0:00:19]} 0-1


[Site "https://www.chess.com"]

[Event "Titled Tuesday Blitz August 02 Early 2022"]
[White "Melikyan, Gnel"]
[Black "Livaic, Leon"]
[WhiteFideId "54109990"]
[BlackFideId "14531534"]
[WhiteElo "1772"]
[BlackElo "2540"]
[Result "1-0"]
[Round "03"]
[TimeControl "180+1"]
[Date "2022.08.02"]
[WhiteClock "0:00:18"]
[BlackClock "0:01:10"]

1. e4 {[%clk 0:02:59]}  c5 {[%clk 0:03:00]} 2. Nf3 {[%clk 0:02:59]}  d6 {[%clk 0:03:00]} 3. d4 {[%clk 0:02:59]}  cxd4 {[%clk 0:03:01]} 4. Nxd4 {[%clk 0:03:00]}  Nf6 {[%clk 0:03:02]} 5. Nc3 {[%clk 0:03:00]}  a6 {[%clk 0:03:02]} 6. Be3 {[%clk 0:03:00]}  e6 {[%clk 0:03:01]} 7. g4 {[%clk 0:03:00]}  h6 {[%clk 0:02:52]} 8. Bg2 {[%clk 0:02:50]}  e5 {[%clk 0:02:40]} 9. Nf5 {[%clk 0:02:49]}  g6 {[%clk 0:02:40]} 10. Qe2 {[%clk 0:02:40]}  gxf5 {[%clk 0:02:39]} 11. exf5 {[%clk 0:02:39]}  Nbd7 {[%clk 0:02:20]} 12. O-O-O {[%clk 0:02:31]}  Qc7 {[%clk 0:02:19]} 13. h4 {[%clk 0:02:28]}  Nb6 {[%clk 0:02:14]} 14. Bxb6 {[%clk 0:01:52]}  Qxb6 {[%clk 0:02:13]} 15. g5 {[%clk 0:01:53]}  Rg8 {[%clk 0:02:09]} 16. f4 {[%clk 0:01:43]}  Nd7 {[%clk 0:01:53]} 17. Nd5 {[%clk 0:01:38]}  Qc5 {[%clk 0:01:50]} 18. fxe5 {[%clk 0:01:33]}  dxe5 {[%clk 0:01:38]} 19. b4 {[%clk 0:01:06]}  Qd6 {[%clk 0:01:38]} 20. Nf6+ {[%clk 0:00:42]}  Nxf6 {[%clk 0:01:37]} 21. Rxd6 {[%clk 0:00:42]}  Bxd6 {[%clk 0:01:38]} 22. gxf6 {[%clk 0:00:41]}  Bxf5 {[%clk 0:01:38]} 23. Qf3 {[%clk 0:00:33]}  Be6 {[%clk 0:01:13]} 24. Qxb7 {[%clk 0:00:28]}  Rd8 {[%clk 0:01:12]} 25. Rd1 {[%clk 0:00:21]}  Kf8 {[%clk 0:01:09]} 26. Rxd6 {[%clk 0:00:19]}  Re8 {[%clk 0:01:09]} 27. Bc6 {[%clk 0:00:18]}  Rg1+ {[%clk 0:01:10]} 28. Kb2 {[%clk 0:00:18]} 1-0


[Site "https://www.chess.com"]

[Event "Titled Tuesday Blitz August 02 Early 2022"]
[White "Molina, Roberto Junio Brito"]
[Black "Hosseinzadeh, Nima"]
[WhiteFideId "2109450"]
[BlackFideId "12505323"]
[WhiteElo "2432"]
[BlackElo "2066"]
[Result "0-1"]
[Round "03"]
[TimeControl "180+1"]
[Date "2022.08.02"]
[WhiteClock "0:00:23"]
[BlackClock "0:00:24"]

1. d4 {[%clk 0:03:00]}  Nf6 {[%clk 0:02:58]} 2. e3 {[%clk 0:03:01]}  g6 {[%clk 0:02:57]} 3. Nf3 {[%clk 0:03:02]}  Bg7 {[%clk 0:02:58]} 4. Be2 {[%clk 0:03:03]}  O-O {[%clk 0:02:57]} 5. O-O {[%clk 0:03:04]}  d5 {[%clk 0:02:54]} 6. b4 {[%clk 0:03:04]}  a5 {[%clk 0:02:52]} 7. b5 {[%clk 0:03:04]}  c5 {[%clk 0:02:53]} 8. bxc6 {[%clk 0:03:05]}  Nxc6 {[%clk 0:02:53]} 9. a4 {[%clk 0:03:00]}  Bf5 {[%clk 0:02:48]} 10. Nc3 {[%clk 0:02:57]}  Nb4 {[%clk 0:02:46]} 11. Bd3 {[%clk 0:02:53]}  Nxd3 {[%clk 0:02:10]} 12. cxd3 {[%clk 0:02:52]}  Rc8 {[%clk 0:02:11]} 13. Nb5 {[%clk 0:02:51]}  Nd7 {[%clk 0:02:10]} 14. Bb2 {[%clk 0:02:48]}  Re8 {[%clk 0:02:10]} 15. Qb3 {[%clk 0:02:46]}  e5 {[%clk 0:02:03]} 16. dxe5 {[%clk 0:02:41]}  Nxe5 {[%clk 0:02:03]} 17. Nxe5 {[%clk 0:02:40]}  Bxe5 {[%clk 0:02:04]} 18. Bxe5 {[%clk 0:02:40]}  Rxe5 {[%clk 0:02:05]} 19. Nd4 {[%clk 0:02:40]}  Qe7 {[%clk 0:01:46]} 20. Rab1 {[%clk 0:02:33]}  Rc7 {[%clk 0:01:26]} 21. Rfd1 {[%clk 0:02:25]}  h5 {[%clk 0:01:24]} 22. Qb6 {[%clk 0:02:19]}  Rc3 {[%clk 0:01:11]} 23. Nxf5 {[%clk 0:02:01]}  Rxf5 {[%clk 0:01:12]} 24. Qxa5 {[%clk 0:02:00]}  d4 {[%clk 0:00:58]} 25. Qa8+ {[%clk 0:02:00]}  Kh7 {[%clk 0:00:57]} 26. e4 {[%clk 0:01:59]}  Rxf2 {[%clk 0:00:48]} 27. Qxb7 {[%clk 0:01:29]}  Qg5 {[%clk 0:00:32]} 28. e5 {[%clk 0:00:46]}  Rcc2 {[%clk 0:00:31]} 29. Kh1 {[%clk 0:00:40]}  Qxg2+ {[%clk 0:00:26]} 30. Qxg2 {[%clk 0:00:39]}  Rxg2 {[%clk 0:00:27]} 31. Ra1 {[%clk 0:00:33]}  Rxh2+ {[%clk 0:00:24]} 32. Kg1 {[%clk 0:00:33]}  h4 {[%clk 0:00:24]} 33. Rdc1 {[%clk 0:00:22]}  Rcg2+ {[%clk 0:00:23]} 34. Kf1 {[%clk 0:00:23]}  h3 {[%clk 0:00:24]} 0-1


[Site "https://www.chess.com"]

[Event "Titled Tuesday Blitz August 02 Early 2022"]
[White "Nitish Belurkar"]
[Black "Vasquez Schroeder, Rodrigo"]
[WhiteFideId "5084768"]
[BlackFideId "3400042"]
[WhiteElo "2306"]
[BlackElo "2567"]
[Result "0-1"]
[Round "03"]
[TimeControl "180+1"]
[Date "2022.08.02"]
[WhiteClock "0:01:04"]
[BlackClock "0:01:17"]

1. d4 {[%clk 0:03:00]}  d5 {[%clk 0:02:59]} 2. Nf3 {[%clk 0:03:00]}  Nf6 {[%clk 0:02:59]} 3. e3 {[%clk 0:03:01]}  c5 {[%clk 0:02:57]} 4. c4 {[%clk 0:03:01]}  cxd4 {[%clk 0:02:57]} 5. Nxd4 {[%clk 0:03:01]}  e5 {[%clk 0:02:52]} 6. Nf3 {[%clk 0:03:01]}  Nc6 {[%clk 0:02:51]} 7. cxd5 {[%clk 0:02:39]}  Qxd5 {[%clk 0:02:51]} 8. Qxd5 {[%clk 0:02:34]}  Nxd5 {[%clk 0:02:52]} 9. Bc4 {[%clk 0:02:30]}  Ndb4 {[%clk 0:02:47]} 10. Na3 {[%clk 0:02:29]}  Bf5 {[%clk 0:02:41]} 11. Bd2 {[%clk 0:02:13]}  Nd3+ {[%clk 0:02:38]} 12. Ke2 {[%clk 0:02:09]}  Nxb2 {[%clk 0:02:31]} 13. Nb5 {[%clk 0:02:09]}  Nxc4 {[%clk 0:02:18]} 14. Nc7+ {[%clk 0:02:08]}  Kd7 {[%clk 0:02:18]} 15. Nxa8 {[%clk 0:02:09]}  Bd6 {[%clk 0:02:13]} 16. Rac1 {[%clk 0:01:56]}  Nxd2 {[%clk 0:02:01]} 17. Nxd2 {[%clk 0:01:56]}  Rxa8 {[%clk 0:02:02]} 18. Rhd1 {[%clk 0:01:56]}  Ke7 {[%clk 0:01:58]} 19. Nc4 {[%clk 0:01:55]}  Bc7 {[%clk 0:01:58]} 20. f3 {[%clk 0:01:53]}  Rd8 {[%clk 0:01:57]} 21. Rxd8 {[%clk 0:01:51]}  Bxd8 {[%clk 0:01:52]} 22. Rd1 {[%clk 0:01:45]}  Bc7 {[%clk 0:01:45]} 23. a3 {[%clk 0:01:44]}  Be6 {[%clk 0:01:45]} 24. Nd2 {[%clk 0:01:44]}  f5 {[%clk 0:01:44]} 25. Rb1 {[%clk 0:01:41]}  b6 {[%clk 0:01:44]} 26. Rc1 {[%clk 0:01:41]}  Kd7 {[%clk 0:01:44]} 27. Rd1 {[%clk 0:01:41]}  Bd6 {[%clk 0:01:44]} 28. Nb1 {[%clk 0:01:35]}  Bb3 {[%clk 0:01:42]} 29. Rd2 {[%clk 0:01:34]}  Ke6 {[%clk 0:01:39]} 30. Rb2 {[%clk 0:01:33]}  Bc4+ {[%clk 0:01:39]} 31. Kf2 {[%clk 0:01:32]}  e4 {[%clk 0:01:38]} 32. Rc2 {[%clk 0:01:28]}  b5 {[%clk 0:01:31]} 33. h3 {[%clk 0:01:20]}  Ne5 {[%clk 0:01:30]} 34. a4 {[%clk 0:01:12]}  Bd3 {[%clk 0:01:28]} 35. Rb2 {[%clk 0:01:12]}  bxa4 {[%clk 0:01:27]} 36. Nc3 {[%clk 0:01:12]}  a3 {[%clk 0:01:27]} 37. Rb7 {[%clk 0:01:12]}  Bc5 {[%clk 0:01:21]} 38. f4 {[%clk 0:01:07]}  Nc4 {[%clk 0:01:18]} 39. Rxg7 {[%clk 0:01:03]}  Bxe3+ {[%clk 0:01:17]} 40. Kg3 {[%clk 0:01:04]}  Bd4 {[%clk 0:01:17]} 0-1


[Site "https://www.chess.com"]

[Event "Titled Tuesday Blitz August 02 Early 2022"]
[White "Wagner, Dennis"]
[Black "Andreikin, Dmitry"]
[WhiteFideId "24650684"]
[BlackFideId "4158814"]
[WhiteElo "2355"]
[BlackElo "2736"]
[Result "0-1"]
[Round "03"]
[TimeControl "180+1"]
[Date "2022.08.02"]
[WhiteClock "0:00:04"]
[BlackClock "0:00:25"]

1. e4 {[%clk 0:03:00]}  c5 {[%clk 0:02:59]} 2. Nf3 {[%clk 0:03:01]}  e6 {[%clk 0:03:00]} 3. d4 {[%clk 0:03:01]}  cxd4 {[%clk 0:03:01]} 4. Nxd4 {[%clk 0:03:01]}  Nc6 {[%clk 0:03:02]} 5. Nc3 {[%clk 0:03:02]}  a6 {[%clk 0:03:02]} 6. Nxc6 {[%clk 0:02:59]}  bxc6 {[%clk 0:03:03]} 7. Bd3 {[%clk 0:03:00]}  d5 {[%clk 0:03:03]} 8. O-O {[%clk 0:03:00]}  Nf6 {[%clk 0:03:04]} 9. Qf3 {[%clk 0:03:00]}  Be7 {[%clk 0:03:01]} 10. Qg3 {[%clk 0:03:00]}  Nh5 {[%clk 0:03:01]} 11. Qg4 {[%clk 0:02:58]}  g6 {[%clk 0:02:52]} 12. e5 {[%clk 0:02:51]}  Bb7 {[%clk 0:02:42]} 13. Bh6 {[%clk 0:02:44]}  c5 {[%clk 0:02:39]} 14. b3 {[%clk 0:02:33]}  Bf8 {[%clk 0:02:37]} 15. Bxf8 {[%clk 0:02:26]}  Kxf8 {[%clk 0:02:38]} 16. Na4 {[%clk 0:02:17]}  Qc7 {[%clk 0:02:37]} 17. Rae1 {[%clk 0:02:09]}  Rc8 {[%clk 0:02:31]} 18. c4 {[%clk 0:02:06]}  d4 {[%clk 0:02:31]} 19. f4 {[%clk 0:02:02]}  Ng7 {[%clk 0:02:30]} 20. Qh4 {[%clk 0:01:45]}  Qe7 {[%clk 0:02:28]} 21. Qh6 {[%clk 0:01:44]}  Kg8 {[%clk 0:02:27]} 22. g4 {[%clk 0:01:43]}  Qf8 {[%clk 0:02:20]} 23. h4 {[%clk 0:01:05]}  Ne8 {[%clk 0:02:17]} 24. Qxf8+ {[%clk 0:01:05]}  Kxf8 {[%clk 0:02:18]} 25. f5 {[%clk 0:01:06]}  gxf5 {[%clk 0:02:14]} 26. gxf5 {[%clk 0:01:06]}  Rg8+ {[%clk 0:02:15]} 27. Kh2 {[%clk 0:01:07]}  Rg2+ {[%clk 0:02:07]} 28. Kh3 {[%clk 0:01:07]}  Rd2 {[%clk 0:02:08]} 29. Rd1 {[%clk 0:00:59]}  Bg2+ {[%clk 0:01:57]} 30. Kg3 {[%clk 0:00:55]}  Rxd3+ {[%clk 0:01:56]} 31. Kxg2 {[%clk 0:00:55]}  Rxd1 {[%clk 0:01:56]} 32. Rxd1 {[%clk 0:00:55]}  exf5 {[%clk 0:01:57]} 33. Kf3 {[%clk 0:00:48]}  Ng7 {[%clk 0:01:53]} 34. Kf4 {[%clk 0:00:48]}  Rc6 {[%clk 0:01:50]} 35. h5 {[%clk 0:00:41]}  Nxh5+ {[%clk 0:01:15]} 36. Kxf5 {[%clk 0:00:41]}  Ng7+ {[%clk 0:01:12]} 37. Ke4 {[%clk 0:00:41]}  Ne6 {[%clk 0:01:13]} 38. Rh1 {[%clk 0:00:32]}  Ke7 {[%clk 0:01:06]} 39. Kd5 {[%clk 0:00:20]}  Rc8 {[%clk 0:01:00]} 40. Rxh7 {[%clk 0:00:20]}  Rd8+ {[%clk 0:00:57]} 41. Kc6 {[%clk 0:00:20]}  d3 {[%clk 0:00:58]} 42. Rh1 {[%clk 0:00:21]}  d2 {[%clk 0:00:53]} 43. Rd1 {[%clk 0:00:21]}  Nd4+ {[%clk 0:00:49]} 44. Kxc5 {[%clk 0:00:20]}  Nc2 {[%clk 0:00:50]} 45. Nc3 {[%clk 0:00:18]}  Ne3 {[%clk 0:00:49]} 46. Rh1 {[%clk 0:00:17]}  d1=Q {[%clk 0:00:47]} 47. Nxd1 {[%clk 0:00:17]}  Nxd1 {[%clk 0:00:42]} 48. Kb6 {[%clk 0:00:16]}  Nc3 {[%clk 0:00:40]} 49. Kxa6 {[%clk 0:00:15]}  Nxa2 {[%clk 0:00:37]} 50. c5 {[%clk 0:00:14]}  Rb8 {[%clk 0:00:36]} 51. Rh3 {[%clk 0:00:10]}  Nb4+ {[%clk 0:00:36]} 52. Ka7 {[%clk 0:00:10]}  Nc6+ {[%clk 0:00:36]} 53. Ka6 {[%clk 0:00:11]}  Nxe5 {[%clk 0:00:34]} 54. Re3 {[%clk 0:00:10]}  f6 {[%clk 0:00:34]} 55. Ka5 {[%clk 0:00:04]}  Kd7 {[%clk 0:00:33]} 56. Re4 {[%clk 0:00:03]}  Kc6 {[%clk 0:00:33]} 57. Rf4 {[%clk 0:00:01]}  Ra8+ {[%clk 0:00:24]} 58. Kb4 {[%clk 0:00:02]}  Nd3+ {[%clk 0:00:24]} 59. Kc4 {[%clk 0:00:03]}  Nxf4 {[%clk 0:00:25]} 60. b4 {[%clk 0:00:04]}  Rb8 {[%clk 0:00:25]} 61. b5+ {[%clk 0:00:04]}  Rxb5 {[%clk 0:00:25]} 0-1


[Site "https://www.chess.com"]

[Event "Titled Tuesday Blitz August 02 Early 2022"]
[White "Alekseenko, Kirill"]
[Black "Nakamura, Hikaru"]
[WhiteFideId "4135539"]
[BlackFideId "2016192"]
[WhiteElo "2682"]
[BlackElo "2850"]
[Result "0-1"]
[Round "04"]
[TimeControl "180+1"]
[Date "2022.08.02"]
[WhiteClock "0:02:12"]
[BlackClock "0:02:18"]

1. e4 {[%clk 0:03:00]}  e5 {[%clk 0:03:00]} 2. Nf3 {[%clk 0:03:01]}  Nc6 {[%clk 0:03:00]} 3. Bb5 {[%clk 0:03:00]}  Nf6 {[%clk 0:03:01]} 4. O-O {[%clk 0:02:50]}  Nxe4 {[%clk 0:03:01]} 5. d4 {[%clk 0:02:49]}  Nd6 {[%clk 0:03:00]} 6. dxe5 {[%clk 0:02:49]}  Nxb5 {[%clk 0:03:00]} 7. a4 {[%clk 0:02:49]}  d6 {[%clk 0:02:59]} 8. e6 {[%clk 0:02:47]}  fxe6 {[%clk 0:02:59]} 9. axb5 {[%clk 0:02:47]}  Ne7 {[%clk 0:03:00]} 10. c4 {[%clk 0:02:47]}  Ng6 {[%clk 0:02:58]} 11. Nc3 {[%clk 0:02:43]}  Be7 {[%clk 0:02:57]} 12. Re1 {[%clk 0:02:32]}  O-O {[%clk 0:02:56]} 13. Nd4 {[%clk 0:02:31]}  e5 {[%clk 0:02:54]} 14. Nc2 {[%clk 0:02:30]}  Be6 {[%clk 0:02:49]} 15. b3 {[%clk 0:02:23]}  Nh4 {[%clk 0:02:38]} 16. Nd5 {[%clk 0:02:19]}  c6 {[%clk 0:02:36]} 17. bxc6 {[%clk 0:02:16]}  bxc6 {[%clk 0:02:36]} 18. Nxe7+ {[%clk 0:02:17]}  Qxe7 {[%clk 0:02:36]} 19. c5 {[%clk 0:02:17]}  Qf6 {[%clk 0:02:23]} 20. Be3 {[%clk 0:02:12]}  Qg6 {[%clk 0:02:18]} 0-1


[Site "https://www.chess.com"]